bitfinex/quotes_SOLUSD_20240620
["timestamp","ask_amount","ask_price","bid_price","bid_amount"]
[1718860374732,0.17,135.13,135.1,15.4094]
[1718860375227,7.7407,135.13,135.09,6.0845]
[1718860375428,0.17,135.12,135.09,6.0845]
[1718860375639,0.34,135.12,135.09,6.0845]
[1718860378319,0.34,135.12,135.09,13.4868]
[1718860378911,0.34,135.13,135.1,7.4018]
[1718860382637,0.34,135.13,135.09,6.0845]
[1718860382817,0.17,135.12,135.09,6.0845]
[1718860383139,0.34,135.12,135.09,13.4867]
[1718860383439,7.38,135.11,135.09,13.4867]
[1718860384028,7.72,135.12,135.09,13.4867]
[1718860385445,7.38,135.11,135.09,7.4022]
[1718860390246,7.38,135.11,135.06,6.2933]
[1718860390455,7.38,135.09,135.06,6.2933]
[1718860390644,7.38,135.09,135.04,15.3615]
[1718860390840,7.9119,135.1,135.04,15.3615]
[1718860390841,0.34,135.08,135.04,15.3615]
[1718860391149,7.38,135.08,135.06,7.4037]
[1718860391323,7.38,135.08,135.05,7.4044]
[1718860392550,7.38,135.08,135.06,7.4041]
[1718860393050,7.38,135.09,135.06,7.4041]
[1718860394128,259.50065774,135.16,135.07,7.4035]
[1718860394129,7.4009,135.12,135.07,7.4035]
[1718860394331,7.4011,135.12,135.07,7.4032]
[1718860394533,7.38,135.11,135.07,7.4032]
[1718860395137,7.4,135.14,135.09,7.4021]
[1718860395450,15.6826,135.16,135.09,7.38]
[1718860395654,7.38,135.14,135.1,7.4015]
[1718860395853,14.7797,135.14,135.1,7.4015]
[1718860396031,7.4003,135.13,135.04,15.3615]
[1718860396232,14.7803,135.13,135.08,7.38]
[1718860396437,7.38,135.13,135.08,7.38]
[1718860396658,7.38,135.13,135.07,7.38]
[1718860396863,7.38,135.13,135.08,7.38]
[1718860397158,0.17,135.14,135.09,7.38]
[1718860397349,7.89,135.14,135.05,45.0]
[1718860397652,0.51,135.14,135.06,20.0]
[1718860398035,0.17,135.13,135.06,20.0]
[1718860398238,0.51,135.13,135.06,20.0]
[1718860398851,0.34,135.13,135.06,20.0]
[1718860399157,7.7399,135.14,135.06,20.0]
[1718860399451,0.34,135.13,135.06,20.0]
[1718860400335,7.7406,135.13,135.06,20.0]
[1718860400534,0.17,135.12,135.05,20.0]
[1718860401053,15.5964227,135.2,135.07,44.7553]
[1718860401245,7.72446354,135.2,135.12,22.13]
[1718860401438,7.3944,135.24,135.19,7.3969]
[1718860401746,23.102,135.25,135.19,7.3969]
[1718860402149,23.102,135.25,135.14,22.3253]
[1718860402150,15.7081,135.25,135.14,22.3253]
[1718860402334,15.7081,135.25,135.15,65.17]
[1718860402539,6.6597,135.26,135.15,65.17]
[1718860402956,14.0529,135.26,135.15,65.17]
[1718860403366,7.3938,135.25,135.15,65.17]
[1718860403854,21.47626962,135.28,135.15,65.17]
[1718860404047,23.088,135.28,135.16,0.34]
[1718860404251,7.3928,135.27,135.16,0.34]
[1718860405741,7.3948,135.23,135.15,87.13]
[1718860405936,0.34,135.22,135.15,87.13]
[1718860406355,0.17,135.24,135.15,87.13]
[1718860406663,0.17,135.23,135.15,42.13]
[1718860406842,0.51,135.23,135.15,20.0]
[1718860407040,0.17,135.22,135.15,20.0]
[1718860409445,0.17,135.22,135.16,2.9547092]
[1718860409746,0.51,135.23,135.16,2.9547092]
[1718860410141,0.34,135.23,135.15,20.0]
[1718860410346,0.17,135.24,135.16,45.0]
[1718860410541,0.68,135.25,135.17,20.0]
[1718860411457,54.98217786,135.3,135.17,20.0]
[1718860411763,7.71817786,135.3,135.19,22.0849]
[1718860411962,7.391,135.3,135.2,65.0]
[1718860412340,7.3916,135.29,135.2,65.0]
[1718860412860,7.3911,135.3,135.2,65.0]
[1718860413049,7.3905,135.31,135.2,65.0]
[1718860413442,47.1178,135.33,135.2,65.0]
[1718860413643,7.392,135.29,135.2,20.0]
[1718860414359,0.68,135.28,135.2,20.0]
[1718860414655,0.34,135.28,135.2,20.0]
[1718860414862,0.51,135.29,135.2,20.0]
[1718860417956,0.34,135.29,135.2,20.0]
[1718860418158,0.34,135.29,135.21,45.0]
[1718860420961,7.7317,135.29,135.2,20.0]
[1718860422844,0.34,135.29,135.2,20.0]
[1718860424654,7.7317,135.29,135.2,20.0]
[1718860425073,0.34,135.29,135.2,20.0]
[1718860425369,0.34,135.29,135.21,45.0]
[1718860426662,0.17,135.32,135.22,20.0]
[1718860426874,8.0698,135.32,135.23,46.45325474]
[1718860427047,8.0698,135.32,135.24,20.0]
[1718860429746,7.71621096,135.33,135.25,66.5949]
[1718860429952,7.71621096,135.33,135.26,20.0]
[1718860430157,13.8163,135.38,135.27,45.17]
[1718860430457,13.8163,135.38,135.28,20.0]
[1718860431469,0.68,135.37,135.28,20.0]
[1718860431664,8.0673,135.37,135.28,20.0]
[1718860431865,0.68,135.37,135.28,20.0]
[1718860432073,7.3878,135.36,135.28,20.0]
[1718860432277,0.51,135.35,135.28,20.0]
[1718860432461,0.34,135.35,135.26,20.0]
[1718860434467,0.34,135.36,135.26,20.0]
[1718860434784,7.7278,135.36,135.26,20.0]
[1718860435678,0.34,135.36,135.26,20.0]
[1718860435874,7.3901,135.32,135.25,21.5949]
[1718860436182,7.9006,135.31,135.25,21.5949]
[1718860436382,0.68,135.31,135.21,21.6321]
[1718860436678,7.3911,135.3,135.21,21.6321]
[1718860436977,0.34,135.29,135.21,21.6321]
[1718860437158,0.17,135.29,135.21,21.6321]
[1718860440057,7.5616,135.29,135.21,21.6321]
[1718860440257,0.17,135.28,135.21,21.6321]
[1718860440465,0.34,135.28,135.21,21.6321]
[1718860441176,7.3905,135.31,135.21,21.6321]
[1718860441555,0.17,135.3,135.21,21.6321]
[1718860441761,7.561,135.3,135.21,21.6321]
[1718860442556,0.17,135.29,135.21,21.6321]
[1718860442961,0.34,135.3,135.21,21.6321]
[1718860444778,7.7311,135.3,135.21,21.6321]
[1718860444971,7.3918,135.29,135.21,21.6321]
[1718860445280,7.7311,135.3,135.21,21.6321]
[1718860445876,0.34,135.3,135.21,21.6321]
[1718860447302,0.34,135.3,135.22,20.0]
[1718860448076,25.1099,135.36,135.23,0.17]
[1718860448382,36.59829302,135.37,135.24,21.2802]
[1718860448383,22.6514,135.37,135.24,21.2802]
[1718860448587,7.388,135.36,135.25,20.0]
[1718860449288,7.3885,135.35,135.25,20.0]
[1718860450277,7.5579,135.36,135.25,20.0]
[1718860451180,7.3882,135.35,135.25,20.0]
[1718860452269,7.5579,135.36,135.25,20.0]
[1718860453876,0.34,135.36,135.25,20.0]
[1718860454187,0.34,135.35,135.25,20.0]
[1718860454370,0.17,135.34,135.25,20.0]
[1718860454762,0.34,135.34,135.25,20.0]
[1718860454967,0.17,135.32,135.24,21.2802]
[1718860455373,0.17,135.33,135.24,21.2802]
[1718860455592,7.5589,135.34,135.24,21.2802]
[1718860455981,0.17,135.34,135.24,21.2802]
[1718860456590,7.5589,135.34,135.24,21.2802]
[1718860457091,7.39,135.32,135.24,21.2802]
[1718860457294,0.34,135.31,135.24,21.2802]
[1718860457476,7.7305,135.31,135.24,21.2802]
[1718860457674,7.3915,135.29,135.24,21.2802]
[1718860457865,7.7322,135.28,135.24,21.2802]
[1718860458068,0.34,135.28,135.24,21.2802]
[1718860458467,7.5614,135.3,135.24,21.2802]
[1718860458777,0.34,135.29,135.24,21.2802]
[1718860458980,0.17,135.31,135.24,21.2802]
[1718860459177,0.68,135.31,135.24,21.2802]
[1718860459375,7.3916,135.29,135.24,21.2802]
[1718860459593,0.34,135.28,135.24,21.2802]
[1718860461689,0.34,135.28,135.2,21.1893]
[1718860461690,7.3932,135.26,135.2,21.1893]
[1718860461888,0.17,135.27,135.2,21.1893]
[1718860461889,7.3927,135.27,135.2,21.1893]
[1718860462077,0.34,135.26,135.2,21.1893]
[1718860462686,0.51,135.27,135.2,21.1893]
[1718860463198,0.34,135.27,135.2,21.1893]
[1718860463997,7.7327,135.27,135.2,21.1893]
[1718860464493,0.34,135.27,135.2,21.1893]
[1718860466198,0.34,135.26,135.2,21.1893]
[1718860466579,0.17,135.25,135.2,21.1893]
[1718860466781,0.34,135.25,135.2,21.1893]
[1718860467198,90.03141423,135.31,135.2,21.1893]
[1718860467496,7.3923,135.28,135.2,21.1893]
[1718860467695,0.51,135.27,135.2,21.1893]
[1718860469396,29.84751423,135.31,135.2,21.1893]
[1718860469599,7.39,135.32,135.21,22.13]
[1718860469775,7.39,135.32,135.23,22.4907]
[1718860469980,7.3894,135.33,135.23,22.4907]
[1718860470194,7.389,135.34,135.23,22.4907]
[1718860470392,7.389,135.34,135.24,20.0]
[1718860470586,16.2664,135.42,135.26,22.6607]
[1718860470809,21.32817784,135.39,135.28,22.4907]
[1718860471103,7.3851,135.41,135.29,20.0]
[1718860471302,7.3855,135.4,135.3,22.13]
[1718860473585,7.3861,135.39,135.3,22.13]
[1718860473979,341.77595735,135.44,135.29,20.0]
[1718860473980,40.5918,135.42,135.29,20.0]
[1718860474189,7.3872,135.37,135.29,20.0]
[1718860474387,0.17,135.36,135.29,20.0]
[1718860475193,0.17,135.37,135.29,20.0]
[1718860476483,7.3862,135.39,135.29,20.0]
[1718860477488,7.3857,135.4,135.29,20.0]
[1718860477889,0.34,135.39,135.3,21.3923]
[1718860478090,0.34,135.4,135.31,20.0]
[1718860478288,0.17,135.4,135.31,20.0]
[1718860478590,323.31755735,135.44,135.31,20.0]
[1718860478896,7.3847,135.42,135.31,20.0]
[1718860479605,7.385,135.41,135.31,20.0]
[1718860481309,317.371402,135.44,135.35,6.5368]
[1718860481482,317.371402,135.44,135.36,20.0]
[1718860481892,317.371402,135.44,135.38,6.5368]
[1718860485687,300.704802,135.44,135.39,15.0127]
[1718860485894,267.371602,135.44,135.43,5.3739]
[1718860486209,261.997702,135.44,135.43,20.0]
[1718860487317,255.331102,135.44,135.43,20.17]
[1718860488397,235.56090791,135.44,135.43,20.17]
[1718860488602,235.56090791,135.44,135.43,20.34]
[1718860489714,235.56090791,135.44,135.43,20.0]
[1718860489912,235.56090791,135.44,135.42,20.17]
[1718860490609,235.56090791,135.44,135.43,0.17]
[1718860490796,235.56090791,135.44,135.42,20.17]
[1718860491504,235.56090791,135.44,135.42,20.0]
[1718860493613,235.56090791,135.44,135.41,6.1987]
[1718860493818,235.56090791,135.44,135.38,6.4532]
[1718860494010,235.56090791,135.44,135.39,20.0]
[1718860500427,235.56090791,135.44,135.38,6.4532]
[1718860501219,235.56090791,135.44,135.37,22.13]
[1718860501417,235.56090791,135.44,135.38,20.0]
[1718860504222,235.56090791,135.44,135.39,0.17]
[1718860504522,235.56090791,135.44,135.4,22.13]
[1718860504723,235.56090791,135.44,135.41,20.0]
[1718860506444,228.16664804,135.44,135.41,20.0]
[1718860506932,228.16664804,135.44,135.42,6.7768]
[1718860507119,228.16664804,135.44,135.43,42.13]
[1718860509422,228.16664804,135.44,135.39,6.0769]
[1718860509635,228.16664804,135.44,135.4,42.13]
[1718860516450,228.16664804,135.44,135.36,22.13]
[1718860516648,228.16664804,135.44,135.37,20.0]
[1718860518259,16.4716,135.43,135.34,22.13]
[1718860518429,16.4716,135.43,135.31,7.9506543]
[1718860518430,6.1046,135.41,135.31,22.13]
[1718860518739,13.4896,135.41,135.3,22.13]
[1718860519137,7.386,135.4,135.3,22.13]
[1718860519327,7.386,135.4,135.31,20.0]
[1718860519529,13.4896,135.41,135.31,20.0]
[1718860519734,6.1046,135.41,135.31,20.0]
[1718860521676,6.1046,135.41,135.32,0.17]
[1718860521836,6.1046,135.41,135.33,22.13]
[1718860522031,6.1046,135.41,135.34,20.0]
[1718860522232,6.1046,135.41,135.35,3.3629714]
[1718860522546,6.1046,135.41,135.34,20.0]
[1718860522730,16.4716,135.43,135.37,0.17]
[1718860522930,16.4716,135.43,135.37,20.17]
[1718860524243,228.16664804,135.44,135.37,20.17]
[1718860524555,228.16664804,135.44,135.39,22.13]
[1718860525053,228.16664804,135.44,135.4,20.0]
[1718860527432,228.16664804,135.44,135.42,22.13]
[1718860527635,226.97843653,135.44,135.42,22.13]
[1718860527844,226.97843653,135.44,135.43,20.0]
[1718860529949,226.97843653,135.44,135.43,20.17]
[1718860530153,202.01854053,135.44,135.43,20.17]
[1718860530351,202.01854053,135.44,135.43,20.68]
[1718860530671,202.01854053,135.44,135.43,20.34]
[1718860531263,202.01854053,135.44,135.43,20.68]
[1718860533847,202.01854053,135.44,135.43,20.0]
[1718860534151,202.01854053,135.44,135.42,20.0]
[1718860535368,202.01854053,135.44,135.4,42.13]
[1718860536152,202.01854053,135.44,135.4,22.13]
[1718860536770,15.4793,135.43,135.35,7.9506543]
[1718860536971,15.4793,135.43,135.35,30.0806543]
[1718860537170,15.4793,135.43,135.35,22.13]
[1718860538085,15.4793,135.43,135.36,0.17]
[1718860538365,15.4793,135.43,135.36,20.0]
[1718860538968,15.4793,135.43,135.31,7.9506543]
[1718860539276,15.4793,135.43,135.31,22.13]
[1718860539465,15.4793,135.43,135.32,20.0]
[1718860542361,15.4793,135.43,135.33,0.17]
[1718860542569,15.4793,135.43,135.34,22.13]
[1718860542782,15.4793,135.43,135.35,20.0]
[1718860542953,15.4793,135.43,135.36,0.17]
[1718860543161,15.4793,135.43,135.38,0.17]
[1718860543374,202.01854053,135.44,135.4,22.13]
[1718860543577,202.01854053,135.44,135.41,20.0]
[1718860549679,202.01854053,135.44,135.38,20.0]
[1718860550455,21.5921,135.43,135.32,5.85995393]
[1718860550704,21.5921,135.43,135.33,20.0]
[1718860550705,7.3845,135.42,135.33,20.0]
[1718860550864,7.5545,135.42,135.33,20.0]
[1718860551561,7.5545,135.42,135.29,20.0]
[1718860551977,0.17,135.42,135.29,20.0]
[1718860552188,0.34,135.42,135.28,319.35695361]
[1718860552586,0.34,135.42,135.28,289.75919161]
[1718860552766,21.5921,135.43,135.28,289.75919161]
[1718860552974,21.5921,135.43,135.29,0.34]
[1718860553185,21.5921,135.43,135.31,0.17]
[1718860553495,21.5921,135.43,135.31,0.51]
[1718860553781,21.5921,135.43,135.32,0.17]
[1718860553983,21.5921,135.43,135.31,20.0]
[1718860554482,21.5921,135.43,135.3,20.0]
[1718860554874,21.5921,135.43,135.3,42.26]
[1718860555073,21.5921,135.43,135.31,0.51]
[1718860555263,21.5921,135.43,135.32,0.34]
[1718860557184,28.9761,135.43,135.3,20.0]
[1718860557880,8.0645,135.42,135.3,20.0]
[1718860558064,21.5921,135.43,135.3,42.26]
[1718860558258,21.5921,135.43,135.3,20.0]
[1718860558464,21.5921,135.43,135.31,0.34]
[1718860558659,21.5921,135.43,135.33,0.17]
[1718860559483,21.5921,135.43,135.33,42.6]
[1718860559696,21.5921,135.43,135.35,0.17]
[1718860559986,21.5921,135.43,135.35,69.30100048]
[1718860560182,21.5921,135.43,135.35,68.32]
[1718860560387,21.5921,135.43,135.37,0.17]
[1718860560587,21.5921,135.43,135.37,0.34]
[1718860560963,21.5921,135.43,135.39,0.17]
[1718860561565,15.2103,135.43,135.39,0.17]
[1718860561780,15.2103,135.43,135.39,0.34]
[1718860562178,15.2103,135.43,135.39,0.17]
[1718860562685,15.2103,135.43,135.38,0.34]
[1718860562884,15.2103,135.43,135.38,0.17]
[1718860563087,15.2103,135.43,135.36,0.17]
[1718860563286,15.2103,135.43,135.36,0.68]
[1718860565789,202.01854053,135.44,135.38,47.98]
[1718860565988,202.01854053,135.44,135.39,20.51]
[1718860566189,202.01854053,135.44,135.39,20.68]
[1718860567098,202.01854053,135.44,135.39,42.94]
[1718860569591,202.01854053,135.44,135.39,20.68]
[1718860571394,202.01854053,135.44,135.41,22.01]
[1718860571598,202.01854053,135.44,135.42,20.17]
[1718860572193,202.01854053,135.44,135.43,0.68]
[1718860572399,187.81854053,135.44,135.43,0.68]
[1718860574882,1.92384053,135.44,135.43,0.68]
[1718860575076,15.7736,135.51,135.43,1.32419887]
[1718860575282,15.7736,135.51,135.47,0.17]
[1718860575490,15.7736,135.51,135.47,20.34]
[1718860575796,15.7736,135.51,135.47,20.68]
[1718860576188,15.7736,135.51,135.47,20.0]
[1718860579391,15.7736,135.51,135.48,7.26284325]
[1718860579591,15.7736,135.51,135.49,24.62439472]
[1718860579793,15.7736,135.51,135.49,8.66534324]
[1718860579991,15.7736,135.51,135.47,20.0]
[1718860580495,15.7736,135.51,135.48,0.17]
[1718860580708,6.6055,135.55,135.48,0.17]
[1718860580709,22.3791,135.55,135.5,0.17]
[1718860580996,6.6055,135.6,135.5,20.51]
[1718860581200,6.6055,135.6,135.55,22.01]
[1718860581501,6.6055,135.6,135.56,24.69201657]
[1718860581703,15.7736,135.62,135.56,24.69201657]
[1718860581704,16.167,135.68,135.57,0.17]
[1718860581884,16.167,135.68,135.58,22.01]
[1718860582084,16.167,135.68,135.59,20.0]
[1718860582292,7.3714,135.66,135.59,20.0]
[1718860582484,16.167,135.68,135.59,20.0]
[1718860582689,7.3708,135.67,135.56,20.0]
[1718860582886,23.5374,135.68,135.57,0.17]
[1718860583088,16.167,135.68,135.57,0.34]
[1718860583783,23.5374,135.68,135.57,0.34]
[1718860583983,23.5376,135.68,135.57,0.34]
[1718860584791,7.3708,135.67,135.57,0.34]
[1718860585209,23.5374,135.68,135.57,0.34]
[1718860585398,16.167,135.68,135.57,0.34]
[1718860587312,23.5372,135.68,135.57,0.34]
[1718860588216,16.167,135.68,135.57,0.34]
[1718860589931,23.5373,135.68,135.57,0.34]
[1718860590104,23.5373,135.68,135.57,0.17]
[1718860590411,16.167,135.68,135.54,20.0]
[1718860590593,23.5375,135.68,135.54,20.0]
[1718860591598,23.5375,135.68,135.55,0.68]
[1718860592598,16.167,135.68,135.55,0.68]
[1718860594917,16.167,135.68,135.56,6.3284]
[1718860595218,16.167,135.68,135.57,20.68]
[1718860599205,22.6745,135.71,135.57,20.68]
[1718860600129,15.3057,135.71,135.57,42.94]
[1718860600415,22.6745,135.71,135.57,20.68]
[1718860601323,15.3057,135.71,135.57,42.94]
[1718860601512,15.3057,135.71,135.57,50.8906543]
[1718860601711,15.3057,135.71,135.59,0.17]
[1718860601893,15.3057,135.71,135.59,20.68]
[1718860603642,15.3057,135.71,135.59,28.6306543]
[1718860604598,15.3057,135.71,135.59,50.8906543]
[1718860605015,15.3249,135.75,135.59,50.8906543]
[1718860605203,22.6917,135.75,135.59,50.8906543]
[1718860606126,15.3249,135.75,135.59,27.9506543]
[1718860606320,7.3696,135.7,135.59,27.9506543]
[1718860606523,7.3694,135.7,135.59,20.0]
[1718860607107,7.7087,135.71,135.59,20.0]
[1718860607519,7.7087,135.71,135.59,41.95]
[1718860607703,0.34,135.71,135.59,41.95]
[1718860608213,7.7086,135.71,135.59,41.95]
[1718860608399,7.7086,135.71,135.6,0.17]
[1718860609509,0.34,135.71,135.59,41.95]
[1718860609798,7.5396,135.7,135.59,41.95]
[1718860610016,7.7098,135.69,135.59,41.95]
[1718860610300,7.7098,135.69,135.59,20.0]
[1718860610825,0.34,135.69,135.59,20.0]
[1718860611002,15.5607,135.68,135.59,20.0]
[1718860612005,0.51,135.67,135.59,20.0]
[1718860612908,0.17,135.67,135.59,20.0]
[1718860613206,15.5607,135.68,135.59,20.0]
[1718860613636,7.3709,135.67,135.59,20.0]
[1718860613929,22.9311,135.68,135.59,20.0]
[1718860614509,7.3708,135.67,135.59,20.0]
[1718860615729,0.51,135.66,135.59,20.0]
[1718860615906,7.8816,135.66,135.58,6.6531]
[1718860616917,0.51,135.66,135.58,6.6531]
[1718860617124,7.8814,135.66,135.58,6.6531]
[1718860617804,0.51,135.66,135.58,6.6531]
[1718860617999,7.7114,135.66,135.58,6.6531]
[1718860618720,7.3722,135.65,135.55,5.86599913]
[1718860619020,7.3722,135.65,135.56,25.14183573]
[1718860619230,7.3724,135.64,135.56,25.14183573]
[1718860619417,7.542,135.65,135.56,25.14183573]
[1718860619721,0.17,135.64,135.56,25.14183573]
[1718860620231,0.51,135.65,135.56,25.14183573]
[1718860620432,7.8819,135.65,135.56,25.14183573]
[1718860621454,7.3724,135.64,135.56,25.14183573]
[1718860621922,7.373,135.63,135.56,25.14183573]
[1718860622227,7.3727,135.64,135.56,25.14183573]
[1718860622918,7.5431,135.63,135.56,5.14183573]
[1718860623120,0.17,135.62,135.54,6.1567]
[1718860623422,22.6136,135.62,135.54,6.1567]
[1718860623625,7.3743,135.61,135.51,388.7031]
[1718860623806,0.68,135.6,135.52,20.0]
[1718860624003,0.68,135.6,135.51,6.3031]
[1718860624330,7.3765,135.57,135.48,6.4808]
[1718860625026,7.3773,135.55,135.48,6.4808]
[1718860625221,0.17,135.57,135.48,6.4808]
[1718860625222,0.17,135.56,135.48,6.4808]
[1718860625525,16.598,135.56,135.48,6.4808]
[1718860627451,23.9748,135.56,135.48,6.4808]
[1718860627726,16.598,135.56,135.48,6.4808]
[1718860628022,0.17,135.54,135.44,15.0699]
[1718860628329,7.3807,135.49,135.41,6.2289]
[1718860628824,23.7102,135.5,135.41,6.2289]
[1718860629003,7.3809,135.49,135.41,6.2289]
[1718860629203,16.33,135.5,135.41,6.2289]
[1718860630023,15.65,135.5,135.41,6.2289]
[1718860630624,23.0301,135.5,135.41,6.2289]
[1718860630812,0.34,135.49,135.41,6.2289]
[1718860631223,0.17,135.48,135.36,27.71695103]
[1718860631425,7.7213,135.48,135.37,20.0]
[1718860631627,0.34,135.47,135.37,20.0]
[1718860632011,13.9768,135.49,135.36,20.0]
[1718860632331,13.977,135.49,135.36,20.0]
[1718860632507,6.5961,135.49,135.36,20.0]
[1718860632918,6.5961,135.49,135.38,21.95]
[1718860633125,6.5961,135.49,135.39,20.0]
[1718860633423,13.9771,135.49,135.39,20.0]
[1718860634020,0.17,135.48,135.39,20.0]
[1718860634223,0.17,135.48,135.36,6.5228]
[1718860634224,7.3829,135.45,135.36,6.5228]
[1718860634426,7.3829,135.45,135.37,20.0]
[1718860634967,7.3834,135.44,135.36,6.5228]
[1718860635429,0.51,135.46,135.36,6.5228]
[1718860636009,7.3829,135.45,135.36,6.5228]
[1718860636525,7.3828,135.45,135.36,6.5228]
[1718860638013,7.7235,135.44,135.36,6.5228]
[1718860638617,7.384,135.43,135.36,6.5228]
[1718860639326,23.9944,135.44,135.36,6.5228]
[1718860640413,0.17,135.43,135.33,21.95]
[1718860640723,0.17,135.43,135.32,6.5228]
[1718860640724,0.34,135.43,135.32,6.5228]
[1718860640911,7.3853,135.41,135.33,20.0]
[1718860641115,7.8957,135.4,135.32,6.5228]
[1718860641417,7.7257,135.4,135.32,6.5228]
[1718860641622,7.7257,135.4,135.28,294.1756]
[1718860641623,22.471,135.39,135.24,7.80848452]
[1718860641820,7.3882,135.36,135.25,20.0]
[1718860642214,0.34,135.37,135.25,20.0]
[1718860642542,20.0,135.38,135.25,21.95]
[1718860642725,22.301,135.39,135.25,21.95]
[1718860642928,0.51,135.38,135.25,21.95]
[1718860643230,0.17,135.37,135.25,21.95]
[1718860643738,7.3888,135.34,135.25,21.95]
[1718860643916,7.3888,135.34,135.24,6.5228]
[1718860644535,7.7284,135.35,135.24,6.5228]
[1718860644723,7.3889,135.34,135.24,6.5228]
[1718860644931,7.3889,135.34,135.25,20.0]
[1718860645830,18.4637,135.41,135.25,41.95]
[1718860646019,7.3877,135.36,135.25,41.95]
[1718860646214,62.7163,135.39,135.25,41.95]
[1718860646419,7.3887,135.35,135.25,41.95]
[1718860646823,7.3873,135.37,135.26,0.17]
[1718860647032,7.3873,135.37,135.26,0.68]
[1718860647242,0.17,135.36,135.25,41.95]
[1718860647420,7.3897,135.33,135.25,20.0]
[1718860647625,7.3897,135.33,135.24,6.5228]
[1718860647939,7.3907,135.31,135.24,6.5228]
[1718860648125,7.3901,135.32,135.24,6.5228]
[1718860648742,7.3895,135.33,135.24,6.5228]
[1718860649638,7.8989,135.34,135.24,6.5228]
[1718860649835,7.3884,135.35,135.25,20.0]
[1718860650032,7.3888,135.34,135.25,20.0]
[1718860650729,7.3893,135.33,135.25,20.0]
[1718860650938,0.17,135.34,135.25,20.0]
[1718860651136,0.17,135.34,135.24,6.5228]
[1718860651332,7.3907,135.31,135.24,6.5228]
[1718860651549,7.3904,135.31,135.24,6.5228]
[1718860651724,0.17,135.34,135.24,6.5228]
[1718860651725,7.39,135.32,135.24,6.5228]
[1718860652542,7.3904,135.31,135.24,6.5228]
[1718860653041,15.3307,135.32,135.24,6.5228]
[1718860653247,7.3919,135.29,135.24,6.5228]
[1718860653543,7.3908,135.31,135.24,6.5228]
[1718860654120,7.3929,135.27,135.2,6.565]
[1718860654435,7.3944,135.24,135.14,6.5142]
[1718860654636,7.3944,135.24,135.15,21.95]
[1718860654845,7.3951,135.23,135.15,21.95]
[1718860655027,7.3943,135.24,135.15,21.95]
[1718860655227,0.34,135.27,135.15,21.95]
[1718860655441,7.3948,135.23,135.14,6.5142]
[1718860655645,7.3944,135.24,135.14,6.5142]
[1718860655835,7.3944,135.24,135.15,20.0]
[1718860656228,16.2362,135.25,135.15,20.0]
[1718860656229,7.3949,135.23,135.15,20.0]
[1718860656428,16.2362,135.25,135.15,20.0]
[1718860656742,7.3946,135.24,135.15,20.0]
[1718860656927,16.2362,135.25,135.15,20.0]
[1718860657123,7.3948,135.23,135.15,20.0]